Cogmind - Beta 13 @@@ ROGUE MODE // 2024.04.06 @ 20:35:14 Player: Phosphorus Result: Destroyed by G-67 Veteran with Field Laser Performance ------------- Evolutions (6) 3000 Regions Visited (33) 6600 Robots Destroyed (276) 1380 Value Destroyed (8520) 8520 Prototype IDs (129) 2580 Alien Tech Used (0) 0 Bonus (6454) 6454 TOTAL SCORE: 28534 Bonus ------- High Alert Combat Kills 525 Follower Combat Kills 1297 Entered Garrisons 200 Network Hubs Disabled 200 Aligned with FarCom 300 Met Data Miner 300 Met Imprinter 300 Acquired ECA 300 Met Zhirov 300 Met Warlord at Base 500 MAIN.C Attacked Warlord 500 Warlord Defense Kills 1048 Built Enhanced Grunts 300 A7 Reached Mainframe 300 Read Decrypted Archives 300 Friendly Fire -216 Cogmind --------- Core Integrity 0/1150 Matter 300/300 Energy 26/100 System Corruption 17% Temperature Cool (21) Movement Core (700) Ox13 Location -4/Hub_04(d) Parts ------- > --- POWER (2) -------- (None) > --- PROPULSION (6) --- (None) > --- UTILITY (9) ------ High-capacity Storage Unit Advanced Gravity Neutralizer Experimental Utility Shielding (fused) Advanced Hacking Suite Advanced Hacking Suite Experimental Hacking Suite Experimental Hacking Suite Experimental System Shield > --- WEAPON (2) ------- (None) > --- INVENTORY (20) --- Light Antimatter Reactor Backup Power VII Cooled VTOL Module Experimental Melee Analysis Suite Experimental Melee Analysis Suite Experimental Melee Analysis Suite Experimental Armor Integrity Analyzer Advanced Force Booster Advanced Reaction Control System Centrium Light Armor Plating Authchip [Device] Authchip [Device] Advanced Trap Extractor (8/8 Shock) Enhanced Nova Cannon Mini Smartbomb Launcher Hellfire Missile Launcher Advanced Datajack Field Lobotomy Kit (5) Plasma Lance Plasma Lance Peak State ------------ > --- POWER ------------ Backup Power VII Backup Power VII > --- PROPULSION ------- Cooled VTOL Module Cooled Nuclear Pulse Thruster Field Propulsion Array Field Propulsion Array > --- UTILITY ---------- High-capacity Storage Unit Advanced Gravity Neutralizer Experimental Utility Shielding Centrium Light Armor Plating Advanced Hacking Suite Advanced Hacking Suite Experimental Hacking Suite Experimental Hacking Suite Experimental System Shield > --- WEAPON ----------- Hellfire Missile Launcher Plasma Lance > --- INVENTORY -------- Light Antimatter Reactor Backup Power VII Field Propulsion Array Experimental Melee Analysis Suite Experimental Melee Analysis Suite Experimental Melee Analysis Suite Experimental Armor Integrity Analyzer Advanced Force Booster Advanced Reaction Control System Centrium Light Armor Plating Authchip [Device] Authchip [Device] Advanced Trap Extractor Enhanced Nova Cannon Mini Smartbomb Launcher Advanced Datajack Field Lobotomy Kit Plasma Lance Plasma Lance [Rating: 146] Favorites ----------- Power Backup Power VII Engine Reinforced Deuterium Engine Power Core Backup Power VII Reactor Light Antimatter Reactor Propulsion Light Treads Treads Light Treads Flight Unit Cooled VTOL Module Utility Advanced Hacking Suite Device Structural Scanner Storage Huge Storage Unit Processor Transport Network Coupler Hackware Advanced Hacking Suite Protection Experimental Utility Shielding Weapon Greatsword Energy Gun Advanced Beam Rifle Energy Cannon Beam Cannon Ballistic Gun Assault Rifle Launcher Mini Smartbomb Launcher Special Weapon RU-N14's Throwing Claymores Impact Weapon Impact Mace Slashing Weapon Greatsword Piercing Weapon Plasma Lance Special Melee Weapon Improved Datajack Build | -11 -10 -10 -10 -9 -8 -8 -8 -7 -7 -7 -7 -7 -7 -6 -6 -6 -6 -6 -5 -5 -5 -5 -5 -5 -5 -4 -4 -4 -4 -4 -4 -4 -4 ------- Run | Yrd Mat Min Exi Min Mat Gar Mat Fac Was Fac Low Low Dat Pro Fac Low Low Zio Pro Fac Was Fac Upp Upp War Pro Fac Was Fac Ext Cet Arc Hub Slots Evolved 12 | . . . . . 4 . . 2 . . . . . . 2 . . . . 2 . . . . . . 2 . . . . . . Power 1 | . . . . . . . . . . . . . . . . . . . . . . . . . . . 1 . . . . . . Propulsion 4 | . . . . . 2 . . . . . . . . . 1 . . . . . . . . . . . 1 . . . . . . Utility 7 | . . . . . 2 . . 2 . . . . . . 1 . . . . 2 . . . . . . . . . . . . . Weapon . | . . . . . . . . . . . . . . . . . . . . . . . . . . . . . . . . . . Parts Attached 450 | 7 9 2 1 4 29 15 24 46 8 26 . 2 2 1 37 . 4 6 . 46 . 35 4 4 15 4 37 1 58 16 4 . 3 Power 25 | 1 1 . . . 3 . 1 2 2 . . . . . 2 . 1 . . 1 . . . . 2 . 5 . 2 2 . . . Engine 7 | 1 . . . . 3 . 1 . 1 . . . . . 1 . . . . . . . . . . . . . . . . . . Core 16 | . 1 . . . . . . 2 1 . . . . . 1 . 1 . . 1 . . . . 2 . 4 . 2 1 . . . Reactor 2 | . . . . . . . . . . . . . . . . . . . . . . . . . . . 1 . . 1 . . . Propulsion 68 | 2 . 1 . . 11 5 5 10 2 2 . . . . 5 . . . . 6 . 1 . . . 1 7 . 9 . . . 1 Treads 21 | 2 . 1 . . 10 5 3 . . . . . . . . . . . . . . . . . . . . . . . . . . Leg . | . . . . . . . . . . . . . . . . . . . . . . . . . . . . . . . . . . Wheel . | . . . . . . . . . . . . . . . . . . . . . . . . . . . . . . . . . . Hover . | . . . . . . . . . . . . . . . . . . . . . . . . . . . . . . . . . . Flight 47 | . . . . . 1 . 2 10 2 2 . . . . 5 . . . . 6 . 1 . . . 1 7 . 9 . . . 1 Utility 171 | 2 3 1 . . 4 4 2 19 2 19 . 2 . . 17 . . 4 . 25 . 18 . . 12 . 12 . 24 . 1 . . Device 53 | 1 1 . . . . 1 . 7 2 7 . 1 . . 3 . . 2 . 10 . 2 . . 6 . 5 . 5 . . . . Storage 8 | 1 2 1 . . . . . 1 . 1 . . . . . . . . . 1 . . . . . . 1 . . . . . . Processor 10 | . . . . . 2 . . . . 1 . 1 . . 1 . . . . 1 . 1 . . 1 . 1 . 1 . . . . Hackware 50 | . . . . . . . . 10 . 10 . . . . 9 . . . . 5 . 6 . . . . . . 10 . . . . Protection 50 | . . . . . 2 3 2 1 . . . . . . 4 . . 2 . 8 . 9 . . 5 . 5 . 8 . 1 . . Artifact . | . . . . . . . . . . . . . . . . . . . . . . . . . . . . . . . . . . Weapon 186 | 2 5 . 1 4 11 6 16 15 2 5 . . 2 1 13 . 3 2 . 14 . 16 4 4 1 3 13 1 23 14 3 . 2 Energy Gun 18 | . . . . . 8 3 7 . . . . . . . . . . . . . . . . . . . . . . . . . . Energy Cannon 25 | . 2 . . 1 1 . . 1 . . . . . . . . . . . 4 . 3 . 1 . . 5 . 6 . . . 1 Ballistic Gun 10 | 2 1 . . 2 . . 4 . . . . . . . . . 1 . . . . . . . . . . . . . . . . Ballistic Cannon . | . . . . . . . . . . . . . . . . . . . . . . . . . . . . . . . . . . Launcher 36 | . 1 . . 1 2 3 2 2 1 . . . . . . . 1 . . 1 . 4 . 1 1 1 1 1 4 7 2 . . Special Weapon 2 | . . . . . . . . . . . . . . . . . . 1 . . . . 1 . . . . . . . . . . Impact Weapon 2 | . . . . . . . . . . . . . . . 1 . . . . 1 . . . . . . . . . . . . . Slashing Weapon 40 | . . . . . . . 2 5 . 4 . . . 1 6 . 1 1 . 7 . 9 3 1 . . . . . . . . . Piercing Weapon 29 | . . . . . . . . . . . . . 1 . 2 . . . . . . . . 1 . 2 6 . 11 5 . . 1 Special Melee Weapon 24 | . 1 . 1 . . . 1 7 1 1 . . 1 . 4 . . . . 1 . . . . . . 1 . 2 2 1 . . Unidentified Prototypes 23 | . . . . . 4 . 2 1 3 . . . . . 2 . . 1 . 2 . 2 1 . 3 . 1 1 . . . . . Parts Lost 34 | . . 1 . . 5 2 . 3 . . . . . . 2 1 . . . . . . . 1 1 . 7 . 4 2 . . 5 Power 11 | . . . . . 1 . . 1 . . . . . . . 1 . . . . . . . . 1 . 4 . 1 2 . . . Propulsion 11 | . . 1 . . 2 1 . . . . . . . . . . . . . . . . . . . . 1 . 2 . . . 4 Utility 10 | . . . . . 2 1 . 2 . . . . . . 2 . . . . . . . . . . . 1 . 1 . . . 1 Weapon 2 | . . . . . . . . . . . . . . . . . . . . . . . . 1 . . 1 . . . . . . Highest Loss Streak 5 | . . 1 . . 2 1 . 2 . . . . . . 1 1 . . . . . . . 1 1 . 4 . 3 2 . . 5 To Critical Strikes 1 | . . . . . . . . . . . . . . . . . . . . . . . . . . . . . 1 . . . . Average Slot Usage (%) 93 | . 100 100 84 99 99 98 99 95 99 92 92 90 96 92 88 93 93 93 93 89 94 93 94 93 94 94 98 77 86 80 74 78 72 Engine 2 | . 1 . . . 7 9 9 . . . . . . . . . . . . . . . . . . . . . . . . . . Core 6 | . 12 14 14 14 1 . . 6 7 7 7 7 7 7 5 6 6 6 6 5 5 5 5 5 4 5 9 . 8 3 . . . Treads 12 | . 28 28 28 28 35 35 35 . . . . . . . . . . . . . . . . . . . . . . . . . . Flight 17 | . . . . . . . . 29 30 29 30 30 30 30 32 33 33 33 33 25 29 29 29 29 29 29 31 31 24 21 21 21 19 Device 7 | . 14 14 14 14 8 6 9 4 6 6 7 5 7 7 4 . . 2 . 5 5 5 5 5 5 5 6 10 7 5 5 5 5 Storage 7 | . 14 14 14 14 9 9 9 7 7 6 7 7 7 7 6 6 6 6 6 5 5 5 5 5 5 5 5 5 5 5 5 5 5 Processor 2 | . . . . . 16 9 9 . . . . . . . . . . . . . . . . . . . . . . . . . . Hackware 16 | . . . . . . . . 29 30 30 30 30 30 30 22 26 26 26 26 29 29 29 29 29 29 29 24 21 27 26 26 26 26 Protection 4 | . . . . . 1 10 9 . . . . . . . 7 13 13 10 13 9 11 9 11 11 10 11 8 . 3 10 10 10 9 Energy Gun 3 | . . . . . 17 17 16 . . . . . . . . . . . . . . . . . . . . . . . . . . Energy Cannon 1 | . 8 14 . 3 . . . . . . . . . . . . . . . . . . . . . . . . . . . . . Ballistic Gun 2 | . 19 14 . 23 . . . . . . . . . . . . . . . . . . . . . . . . . . . . . Slashing Weapon 2 | . . . . . . . . 6 7 6 7 7 2 6 5 6 5 6 6 4 5 4 5 1 . . . . . . . . . Special Melee Weapon 2 | . . . 13 . . . . 6 7 . . . 4 . . . . . . . . . . . . . 5 . 2 2 . 5 1 Naked Turns . | . . . . . . . . . . . . . . . . . . . . . . . . . . . . . . . . . . Heaviest Build 105 | 15 51 91 87 92 105 105 105 25 21 21 20 20 20 20 24 23 26 23 23 34 34 41 34 34 35 35 57 56 58 67 60 57 59 Greatest Support 83 | 40 40 40 40 40 83 83 80 21 21 21 21 21 25 21 26 26 26 26 26 36 36 42 36 45 36 36 68 53 62 62 57 57 61 Greatest Overweight (x) 13 | . 1 2 2 2 1 1 1 1 1 . . . . . 1 . . . . 1 . 1 . . . . 2 2 1 1 1 . 13 Average Overweight (x) . | . . 1 2 2 1 1 1 . . . . . . . . . . . . . . . . . . . . . . . . . . Largest Inventory Capacity 25 | 8 20 25 25 25 25 25 25 25 10 10 10 10 10 10 10 10 10 10 10 15 15 15 15 15 15 15 20 20 20 20 20 20 20 Average Capacity 17 | 7 19 24 25 25 25 25 25 10 10 9 10 10 10 10 10 10 10 10 10 10 15 15 15 15 15 15 17 20 20 20 20 20 20 Most Carried 25 | 5 20 20 22 25 25 25 25 25 10 10 9 10 9 8 10 9 10 10 10 13 14 15 14 14 15 15 17 16 20 20 20 19 20 Average Carried 16 | 3 14 19 21 22 24 25 24 9 9 8 8 9 7 7 9 9 8 9 10 9 13 13 14 13 12 14 14 15 18 19 19 19 19 Final Capacity 25 | 8 20 25 25 25 25 25 25 10 10 10 10 10 10 10 10 10 10 10 10 15 15 15 15 15 15 15 20 20 20 20 20 20 20 Final Carried 25 | 5 19 20 22 25 25 25 25 10 10 8 9 9 7 7 9 9 8 10 10 13 14 14 14 13 12 15 15 16 20 20 19 19 20 Class Distribution -------------------- 29% | Wizard-Sprinter 26% | Hacker-Sprinter 22% | Scavenger-Mutant 17% | Mutant Dominant Class ---------------- Mutant | -10/Materials Mutant | -10/Mines Mutant | -10/Exiles Mutant | -9/Mines Scavenger-Mutant | -8/Materials Scavenger-Mutant | -8/Garrison Scavenger-Mutant | -8/Materials Hacker-Sprinter | -7/Factory Hacker-Sprinter | -7/Waste Hacker-Sprinter | -7/Factory Hacker-Sprinter | -7/Lower Caves Hacker-Sprinter | -7/Lower Caves Hacker-Sprinter | -7/Data Miner Hacker-Sprinter | -6/Proximity Caves Hacker-Sprinter | -6/Factory Hacker-Sprinter | -6/Lower Caves Hacker-Sprinter | -6/Lower Caves Hacker-Sprinter | -6/Zion Hacker-Sprinter | -5/Proximity Caves Wizard-Sprinter | -5/Factory Wizard-Sprinter | -5/Waste Wizard-Sprinter | -5/Factory Wizard-Sprinter | -5/Upper Caves Wizard-Sprinter | -5/Upper Caves Wizard-Sprinter | -5/Warlord Wizard-Sprinter | -4/Proximity Caves Wizard-Sprinter | -4/Factory Wizard-Mutant | -4/Waste Wizard-Sprinter | -4/Factory Wizard-Sprinter | -4/Extension Wizard-Sprinter | -4/Cetus Wizard-Sprinter | -4/Archives Wizard-Sprinter | -4/Hub_04(d) Resources | -11 -10 -10 -10 -9 -8 -8 -8 -7 -7 -7 -7 -7 -7 -6 -6 -6 -6 -6 -5 -5 -5 -5 -5 -5 -5 -4 -4 -4 -4 -4 -4 -4 -4 ----------- Run | Yrd Mat Min Exi Min Mat Gar Mat Fac Was Fac Low Low Dat Pro Fac Low Low Zio Pro Fac Was Fac Upp Upp War Pro Fac Was Fac Ext Cet Arc Hub Matter Collected 7641 | 330 255 60 . 129 439 214 362 597 . 313 52 20 . 38 285 19 166 54 15 515 . 584 40 222 429 91 442 . 852 777 312 . 29 Remotely . | . . . . . . . . . . . . . . . . . . . . . . . . . . . . . . . . . . Salvage Created 10452 | 94 498 33 . 238 1626 712 1462 516 . 250 171 221 . 114 457 . 44 . . 612 . 618 . 245 302 234 592 . 731 618 . . 64 Parts 544 | 4 37 3 . 14 70 42 68 34 . 14 . 2 . 5 19 . 5 . . 34 . 34 . 12 5 9 37 . 53 31 . . 12 Haulers Intercepted 17 | . 2 . . . 5 . 3 1 . . . . . . 3 . . . . 1 . 1 . . . . 1 . . . . . . Recyclers Shooed 11 | . 1 . . 1 1 . 2 1 . . . . . . . . . . . 1 . 1 . . . . 1 . 1 1 . . . Parts Field Recycled . | . . . . . . . . . . . . . . . . . . . . . . . . . . . . . . . . . . Retrieved Matter . | . . . . . . . . . . . . . . . . . . . . . . . . . . . . . . . . . . Parts Self-Destructed 21 | . . . . . . . . . . . . 1 . 6 . . 1 . . . . . . 6 . 7 . . . . . . . Prevented . | . . . . . . . . . . . . . . . . . . . . . . . . . . . . . . . . . . Kills | -11 -10 -10 -10 -9 -8 -8 -8 -7 -7 -7 -7 -7 -7 -6 -6 -6 -6 -6 -5 -5 -5 -5 -5 -5 -5 -4 -4 -4 -4 -4 -4 -4 -4 ------- Run | Yrd Mat Min Exi Min Mat Gar Mat Fac Was Fac Low Low Dat Pro Fac Low Low Zio Pro Fac Was Fac Upp Upp War Pro Fac Was Fac Ext Cet Arc Hub Combat Hostiles Destroyed 167 | . 10 1 . 3 27 21 21 10 . 2 . . . 1 . . 4 . . 5 . 15 . 5 12 4 4 . 9 12 1 . . Melee 7 | . . . . . . . . 2 . 2 . . . 1 . . . . . 1 . . . . . . . . . 1 . . . Guns 53 | . 5 . . . 18 12 18 . . . . . . . . . . . . . . . . . . . . . . . . . . Cannons 3 | . 2 1 . . . . . . . . . . . . . . . . . . . . . . . . . . . . . . . AOE 102 | . 3 . . 3 7 9 3 8 . . . . . . . . 4 . . 4 . 15 . 5 12 4 4 . 9 11 1 . . Classes Destroyed 17 | 2 5 . . . 4 . 2 2 . . . . . . . . . . . . . . . . 1 . . . 1 . . . . Worker 16 | . 2 . . . 1 . . 2 . . . . . . . . . . . 4 . 2 . . . . . . 4 . . . 1 Builder 14 | . . . . . 1 . . 2 . . . . . . 2 . . . . 2 . 1 . . . . . . 3 . . . 3 Tunneler 3 | 1 . . . . . . . . . . . . . . . . . . . . . . . . . . . . 2 . . . . Hauler 17 | . 2 . . . 5 . 3 1 . . . . . . 3 . . . . 1 . 1 . . . . 1 . . . . . . Recycler 25 | 1 . . . 2 3 . 3 3 . 1 . . . . . . . . . 2 . 2 . . . . 2 . 4 2 . . . Mechanic 2 | . . . . . . . 1 . . . . . . . . . . . . . . 1 . . . . . . . . . . . Operator 6 | . . . . . . . 2 2 . . . . . . . . . . . . . . . . . . 1 . . 1 . . . Drone 1 | . . . . . . . . 1 . . . . . . . . . . . . . . . . . . . . . . . . . Watcher 26 | . 3 . . . 1 . 2 2 . 3 . . . . 3 . . . . 3 . 2 . . . . 4 . 1 1 1 . . Swarmer 73 | . 3 . . 3 4 6 3 8 . 1 . . . . . . 4 . . 5 . 12 . 5 1 4 4 . 5 5 . . . Cutter 2 | . . . . . . . . . . . . . . . . . . . . . . . . . . . . . 2 . . . . Saboteur 2 | . . . . . . . . . . . . . . . . . . . . . . . . . 2 . . . . . . . . Grunt 55 | . 7 1 . . 14 9 13 . . . . . . . . . . . . . . 2 . . 9 . . . . . . . . Brawler 3 | . . . . . 1 1 1 . . . . . . . . . . . . . . . . . . . . . . . . . . Sentry 17 | . . . . . 6 5 4 . . . . . . . . . . . . . . . . . . . . . . 2 . . . Hunter 8 | . . . . . 2 . . . . . . . . . . . . . . . . 1 . . . . . . . 5 . . . Programmer 5 | . . . . . . . . 1 . 1 . . . 1 . . . . . . . . . . . . . . 2 . . . . Cetus Guard 1 | . . . . . . . . . . . . . . . . . . . . . . . . . . . . . . . 1 . . Packrat 2 | . . . . . . . . . . . 2 . . . . . . . . . . . . . . . . . . . . . . Guerrilla 1 | . . . . . . . . . . . . . . . . . . . . . . . . . . . . . . 1 . . . Best Kill Streak 9 | 1 4 1 . 3 7 6 4 7 . 2 . . . 1 2 . 4 . . 4 . 9 . 5 6 4 4 . 9 5 2 . 4 Combat Bots Only 7 | . 4 1 . 3 4 6 4 4 . 1 . . . 1 . . 4 . . 4 . 6 . 5 6 4 4 . 7 5 1 . . Max Kills in Single Turn 4 | 1 4 1 . 2 3 4 2 3 . 1 1 . . 1 1 . 3 . . 2 . 4 . 4 3 1 4 . 4 2 1 . 4 Gunslinging 1 | . . . . . 1 1 . . . . . . . . . . . . . . . . . . . . . . . . . . . Exploded 4 | . 3 . . 2 2 4 2 2 . . . . . . . . 3 . . 2 . 4 . 4 3 1 4 . 4 2 1 . . Melee 1 | . . . . . . . . 1 . 1 . . . 1 . . . . . 1 . . . . . . . . . 1 . . . Uniques/NPCs Destroyed . | . . . . . . . . . . . . . . . . . . . . . . . . . . . . . . . . . . Combat | -11 -10 -10 -10 -9 -8 -8 -8 -7 -7 -7 -7 -7 -7 -6 -6 -6 -6 -6 -5 -5 -5 -5 -5 -5 -5 -4 -4 -4 -4 -4 -4 -4 -4 -------- Run | Yrd Mat Min Exi Min Mat Gar Mat Fac Was Fac Low Low Dat Pro Fac Low Low Zio Pro Fac Was Fac Upp Upp War Pro Fac Was Fac Ext Cet Arc Hub Hostile Shots Fired 1001 | . 30 12 . . 120 71 66 54 . 16 10 . 6 18 60 9 19 . . 23 . 47 . 26 15 28 105 . 100 84 19 . 63 Missed 430 | . 7 2 . . 23 16 18 33 . 6 9 . 3 12 35 2 13 . . 15 . 29 . 15 9 16 48 . 54 40 5 . 20 Damage Taken 10918 | . 367 127 . . 1501 815 670 314 . 153 14 . 137 106 354 121 107 . . 121 . 421 . 177 322 227 1145 . 1266 859 310 . 1284 Core 2207 | . 11 22 . . 135 77 81 70 . 14 . . 137 51 49 70 32 . . . . 165 . 52 19 65 169 . 187 267 63 . 471 Absorbed by Shields 153 | . . . . . . . . 15 . . . . . . . . . . . . . . . . . . 48 . . . 90 . . Redirected to Shielding 361 | . . . . . . . . . . . . . . . 17 . 23 . . 14 . 36 . . . . 135 . 32 9 13 . 82 Regen/Repaired (Parts) 2541 | . . . . . . . 120 38 . 122 . . . . 166 . . . . . . 243 . . . . 905 . 947 . . . . Core Remaining (%) 74 | 100 . . . 86 . . 46 . . . . . . 61 . . . . 82 . . . . . . 69 . . . . . . . Volleys Fired 381 | 10 31 6 . 8 88 41 79 8 . . . . . . . . 3 . . 11 . 13 . 3 11 5 13 . 20 23 6 . 2 Largest 2 | 2 2 2 . 2 2 2 2 1 . . . . . . . . 1 . . 1 . 1 . 1 1 1 1 . 1 1 1 . 1 Hottest 122 | 40 80 80 . 53 122 122 122 39 . . . . . . . . 43 . . 98 . 120 . 120 80 80 120 . 120 80 80 . 120 Shots Fired 622 | 20 61 13 . 16 167 74 155 8 . . . . . . . . 2 . . 11 . 12 . 3 11 5 13 . 20 23 6 . 2 Gun 460 | 20 49 7 . 14 153 65 152 . . . . . . . . . . . . . . . . . . . . . . . . . . Cannon 60 | . 11 6 . . 5 . . . . . . . . . . . . . . 6 . 6 . 1 . . 12 . 11 . . . 2 Launcher 102 | . 1 . . 2 9 9 3 8 . . . . . . . . 2 . . 5 . 6 . 2 11 5 1 . 9 23 6 . . Special . | . . . . . . . . . . . . . . . . . . . . . . . . . . . . . . . . . . Kinetic 107 | 20 49 7 . 14 5 . 12 . . . . . . . . . . . . . . . . . . . . . . . . . . Thermal 413 | . 11 6 . . 153 65 140 . . . . . . . . . . . . 6 . 6 . 1 . . 12 . 11 . . . 2 Explosive 102 | . 1 . . 2 9 9 3 8 . . . . . . . . 2 . . 5 . 6 . 2 11 5 1 . 9 23 6 . . Electromagnetic . | . . . . . . . . . . . . . . . . . . . . . . . . . . . . . . . . . . Robot Hit Streak 19 | 3 14 7 . 4 19 10 16 2 . . . . . . . . 3 . . 1 . 5 . . . . 6 . 4 9 . . . Robot Miss Streak 4 | 4 4 1 . 2 3 4 3 2 . . . . . . . . . . . 1 . . . . . . . . 1 . . . . Penetration Max . | . . . . . . . . . . . . . . . . . . . . . . . . . . . . . . . . . . Secondary Targets 11 | . . . . . 6 3 2 . . . . . . . . . . . . . . . . . . . . . . . . . . Max Gunslinging Chain 1 | . . . . . 1 1 1 . . . . . . . . . . . . . . . . . . . . . . . . . . Shots Hit Robots 508 | 10 37 9 6 9 115 44 89 30 . 8 3 7 2 2 25 . 1 . . 22 . 12 . 5 . 4 18 . 20 29 1 . . Core Hits 401 | 3 27 3 . 9 58 28 49 19 . 5 1 3 . 2 6 . 3 . . 15 . 27 . 7 26 6 12 . 25 41 13 . 13 Critical Kills . | . . . . . . . . . . . . . . . . . . . . . . . . . . . . . . . . . . Critical Parts Destroyed 1 | . 1 . . . . . . . . . . . . . . . . . . . . . . . . . . . . . . . . Critical Strikes 37 | . 1 . . . 10 3 9 . . . . . . . 4 . . . . 2 . . . 1 . 1 2 . 2 2 . . . Burn 22 | . . . . . 10 3 9 . . . . . . . . . . . . . . . . . . . . . . . . . . Destroy 1 | . 1 . . . . . . . . . . . . . . . . . . . . . . . . . . . . . . . . Sever 5 | . . . . . . . . . . . . . . . 3 . . . . 2 . . . . . . . . . . . . . Impale 9 | . . . . . . . . . . . . . . . 1 . . . . . . . . 1 . 1 2 . 2 2 . . . Melee Attacks 671 | . 1 . 6 1 . . 5 105 . 42 3 9 21 7 92 . 3 2 3 45 . 54 2 12 51 25 74 . 79 27 1 . 1 Impact . | . . . . . . . . . . . . . . . . . . . . . . . . . . . . . . . . . . Slashing 362 | . . . . . . . 4 101 . 42 3 9 6 7 76 . 3 2 3 44 . 54 2 6 . . . . . . . . . Piercing 272 | . . . . . . . . . . . . . 14 . 12 . . . . . . . . 6 51 25 73 . 79 11 . . 1 Sneak Attacks 84 | . 1 . 6 1 . . 1 12 . 1 2 . 2 . 9 . . . . 11 . 5 . . . . 6 . 8 18 1 . . Combat Hostiles 1 | . . . . . . . . . . . . . . . . . . . . 1 . . . . . . . . . . . . . Follow-up Attacks . | . . . . . . . . . . . . . . . . . . . . . . . . . . . . . . . . . . Damage Inflicted 31383 | 137 682 140 . 212 2858 1382 2078 2487 . 535 254 638 72 167 1386 . 350 . . 2044 . 2802 . 956 1910 902 1550 . 3381 3011 761 . 688 Guns 5264 | 137 374 33 . 102 2066 800 1752 . . . . . . . . . . . . . . . . . . . . . . . . . . Cannons 320 | . 143 107 . . 70 . . . . . . . . . . . . . . . . . . . . . . . . . . . . Explosions 14493 | . 164 . . 101 715 582 323 896 . . . . . . . . 350 . . 321 . 2037 . 496 1910 495 344 . 1855 2455 761 . 688 Melee 11286 | . . . . . . . . 1591 . 535 254 638 72 167 1386 . . . . 1723 . 765 . 460 . 407 1206 . 1526 556 . . . Ramming 20 | . 1 . . 9 7 . 3 . . . . . . . . . . . . . . . . . . . . . . . . . . Kinetic 787 | 137 374 33 . 102 45 . 96 . . . . . . . . . . . . . . . . . . . . . . . . . . Thermal 4995 | . 143 107 . . 2091 800 1656 . . . . . . . . . . . . . . . . . . . . . 198 . . . . Explosive 13607 | . 164 . . 101 715 582 323 896 . . . . . . . . 350 . . 321 . 2037 . 496 1910 495 344 . 1657 2455 761 . . Electromagnetic 688 | . . . . . . . . . . . . . . . . . . . . . . . . . . . . . . . . . 688 Impact . | . . . . . . . . . . . . . . . . . . . . . . . . . . . . . . . . . . Slashing 6757 | . . . . . . . . 1591 . 535 254 638 . 167 1084 . . . . 1723 . 765 . . . . . . . . . . . Piercing 4529 | . . . . . . . . . . . . . 72 . 302 . . . . . . . . 460 . 407 1206 . 1526 556 . . . Highest Corruption 17 | . 2 2 2 2 . . . 1 1 3 3 3 3 3 3 3 3 3 . . 8 8 8 8 8 . 5 5 6 6 6 6 17 Average Corruption 3 | . 2 2 2 2 . . . 1 1 1 3 3 3 3 2 3 3 3 . . 8 8 8 8 8 . 5 5 5 6 6 6 6 Corruption Purged . | . . . . . . . . . . . . . . . . . . . . . . . . . . . . . . . . . . Corruption Blocked . | . . . . . . . . . . . . . . . . . . . . . . . . . . . . . . . . . . Effects 226 | . 10 11 20 6 . . . 7 1 8 3 . 3 3 6 . 5 2 . . . 39 2 6 2 . 4 2 61 13 6 2 4 Message Errors 61 | . 6 2 3 . . . . 2 . . 1 . . . 1 . 1 . . . . 11 1 3 . . 2 1 23 2 2 . . Matter Fused 59 | . 1 5 8 2 . . . 1 . 1 . . 1 1 2 . 3 1 . . . 11 1 2 1 . 1 . 11 2 2 1 1 Heat Flow Errors 34 | . 3 . 3 2 . . . 1 . 3 2 . . . 1 . . . . . . 6 . . . . . . 9 2 1 . 1 Energy Discharges 24 | . . 2 1 . . . . . . . . . 2 1 . . . 1 . . . 4 . 1 . . . 1 5 5 . 1 . Parts Rejected 3 | . . . . . . . . . . . . . . . . . . . . . . . . . . . 1 . 2 . . . . Parts Fused 4 | . . . 1 . . . . . . . . . . . . . . . . . . . . . . . . . 2 1 . . . Data Loss (minor) 24 | . . . 3 1 . . . 3 . 3 . . . 1 1 . . . . . . 4 . . . . . . 7 . . . 1 Data Loss (major) 8 | . . . . . . . . . 1 1 . . . . 1 . . . . . . 2 . . 1 . . . . . 1 . 1 Misfires 2 | . . 1 . 1 . . . . . . . . . . . . . . . . . . . . . . . . . . . . . Alerts 5 | . . 1 1 . . . . . . . . . . . . . . . . . . . . . . . . . 2 1 . . . Weapon Failures 2 | . . . . . . . . . . . . . . . . . 1 . . . . 1 . . . . . . . . . . . Overload Shots . | . . . . . . . . . . . . . . . . . . . . . . . . . . . . . . . . . . Overflow Damage 3503 | . . . . . 43 21 9 472 . 69 192 195 12 . 217 . 39 . . 306 . 155 . 260 2 289 182 . 704 315 5 . 16 Projectiles . | . . . . . . . . . . . . . . . . . . . . . . . . . . . . . . . . . . Explosions 822 | . . . . . 43 21 9 75 . . . . . . . . 39 . . 31 . 12 . 113 2 36 . . 224 196 5 . 16 Melee 2681 | . . . . . . . . 397 . 69 192 195 12 . 217 . . . . 275 . 143 . 147 . 253 182 . 480 119 . . . Knockbacks . | . . . . . . . . . . . . . . . . . . . . . . . . . . . . . . . . . . Impact . | . . . . . . . . . . . . . . . . . . . . . . . . . . . . . . . . . . Kinetic . | . . . . . . . . . . . . . . . . . . . . . . . . . . . . . . . . . . Secondary . | . . . . . . . . . . . . . . . . . . . . . . . . . . . . . . . . . . Self-Inflicted Damage 352 | . 7 . . . . 63 . 72 . . . . . . . . . . . . . . . . . 21 . . 88 . . . 101 Shots 8 | . 1 . . . . 2 . 2 . . . . . . . . . . . . . . . . . 1 . . 1 . . . 1 Rammed 5 | . 1 . . 2 1 . 1 . . . . . . . . . . . . . . . . . . . . . . . . . . Targets Rammed 5 | . 1 . . 2 1 . 1 . . . . . . . . . . . . . . . . . . . . . . . . . . Kicked . | . . . . . . . . . . . . . . . . . . . . . . . . . . . . . . . . . . Crushed . | . . . . . . . . . . . . . . . . . . . . . . . . . . . . . . . . . . Highest Temperature 452 | . 174 6 250 166 431 315 330 168 . 257 205 . 76 14 161 . 9 . . 80 . 261 . 68 91 65 296 . 348 452 98 . 167 Average Temperature 69 | . 56 3 118 89 78 119 65 70 . 99 111 . 44 7 32 . 5 . . 34 . 89 . 25 37 34 43 . 106 81 29 . 78 Received Heat Transfer 2626 | . 144 69 . . 666 387 351 9 . . 9 . . 39 78 . 9 . . . . 45 . . . . 78 . 100 464 27 . 151 Effects 9 | . . . . . 2 1 . . . . . . . . . . . . . . . . . . . . 1 . 4 1 . . . Shutdowns 4 | . . . . . 2 . . . . . . . . . . . . . . . . . . . . . . . 1 1 . . . Energy Bleed 5 | . . . . . . 1 . . . . . . . . . . . . . . . . . . . . 1 . 3 . . . . Siege Activations . | . . . . . . . . . . . . . . . . . . . . . . . . . . . . . . . . . . Robots Corrupted . | . . . . . . . . . . . . . . . . . . . . . . . . . . . . . . . . . . Combat Hostiles . | . . . . . . . . . . . . . . . . . . . . . . . . . . . . . . . . . . Parts Fried 3 | . . . . . . . . . . . . . . . . . . . . . . . . . 1 . . . . . . . 2 Impact Corruptions . | . . . . . . . . . . . . . . . . . . . . . . . . . . . . . . . . . . Robots Melted 2 | . . . . . 2 . . . . . . . . . . . . . . . . . . . . . . . . . . . . Combat Hostiles 2 | . . . . . 2 . . . . . . . . . . . . . . . . . . . . . . . . . . . . Parts Melted 22 | . . . . . 12 5 5 . . . . . . . . . . . . . . . . . . . . . . . . . . Heat Transferred 10793 | . 296 222 . . 4736 1702 3737 . . . . . . . . . . . . . . . . . . . . . 100 . . . . Parts Sabotaged . | . . . . . . . . . . . . . . . . . . . . . . . . . . . . . . . . . . Parts Stolen . | . . . . . . . . . . . . . . . . . . . . . . . . . . . . . . . . . . Parts Stripped . | . . . . . . . . . . . . . . . . . . . . . . . . . . . . . . . . . . Power Chain Reactions . | . . . . . . . . . . . . . . . . . . . . . . . . . . . . . . . . . . Alert | -11 -10 -10 -10 -9 -8 -8 -8 -7 -7 -7 -7 -7 -7 -6 -6 -6 -6 -6 -5 -5 -5 -5 -5 -5 -5 -4 -4 -4 -4 -4 -4 -4 -4 ------- Run | Yrd Mat Min Exi Min Mat Gar Mat Fac Was Fac Low Low Dat Pro Fac Low Low Zio Pro Fac Was Fac Upp Upp War Pro Fac Was Fac Ext Cet Arc Hub Peak Influence 1020 | 10 234 21 . 99 359 1020 697 477 109 309 . . . . 358 . . . . 298 125 525 . . . . 719 208 652 873 564 365 757 Initial 497 | . 6 21 . . 38 233 497 203 49 76 . . . . 59 . . . . 37 80 73 . . . . 72 163 145 319 116 225 127 Average 258 | 3 87 13 . 64 184 678 435 263 100 163 . . . . 164 . . . . 121 101 273 . . . . 383 178 259 405 310 282 272 Maximum Alert Level 3 | . 1 . . . 1 3 2 2 . 1 . . . . 1 . . . . 1 . 2 . . . . 3 1 2 3 2 1 3 Low Security (%) 48 | 100 94 100 . 100 51 . . 38 100 84 . . . . 58 . . . . 87 100 29 . . . . 23 93 56 18 9 . 58 Level 1 31 | . 5 . . . 48 10 54 49 . 15 . . . . 41 . . . . 12 . 55 . . . . 28 6 11 44 74 100 29 Level 2 16 | . . . . . . 40 45 11 . . . . . . . . . . . . . 14 . . . . 47 . 31 14 16 . . Level 3 3 | . . . . . . 48 . . . . . . . . . . . . . . . . . . . . . . . 22 . . 11 Level 4 . | . . . . . . . . . . . . . . . . . . . . . . . . . . . . . . . . . . Level 5 . | . . . . . . . . . . . . . . . . . . . . . . . . . . . . . . . . . . High Security . | . . . . . . . . . . . . . . . . . . . . . . . . . . . . . . . . . . Max Security . | . . . . . . . . . . . . . . . . . . . . . . . . . . . . . . . . . . Squads Dispatched 89 | . 3 . . . 4 . 4 13 . 7 . . . . 9 . 1 . . 8 . 8 . . . . 12 . 13 3 . . 4 Investigation 58 | . 3 . . . 3 . 2 9 . 7 . . . . 7 . . . . 6 . 6 . . . . 7 . 5 1 . . 2 Extermination 9 | . . . . . . . . 2 . . . . . . 1 . . . . 1 . 1 . . . . 1 . 3 . . . . Reinforcement 17 | . . . . . . . 2 2 . . . . . . 1 . . . . 1 . 1 . . . . 3 . 3 2 . . 2 Assault 4 | . . . . . . . . . . . . . . . . . 1 . . . . . . . . . 1 . 2 . . . . Garrison 1 | . . . . . 1 . . . . . . . . . . . . . . . . . . . . . . . . . . . . Intercept . | . . . . . . . . . . . . . . . . . . . . . . . . . . . . . . . . . . Searches Triggered 4 | . . . . . . . . . . . . . . . . . . . . . . 1 . . . . 3 . . . . . . Construction Impeded 2 | . . . . . . . . 1 . . . . . . . . . . . . . . . . . . . . . . . . 1 Haulers Reinforced 2 | . . . . . . . . . . . . . . . 1 . . . . . . 1 . . . . . . . . . . . Active Scanning Responses . | . . . . . . . . . . . . . . . . . . . . . . . . . . . . . . . . . . Cargo Convoy Interrupts 1 | . . . . . . . . . . . . . . . . . . . . 1 . . . . . . . . . . . . . Stealth | -11 -10 -10 -10 -9 -8 -8 -8 -7 -7 -7 -7 -7 -7 -6 -6 -6 -6 -6 -5 -5 -5 -5 -5 -5 -5 -4 -4 -4 -4 -4 -4 -4 -4 --------- Run | Yrd Mat Min Exi Min Mat Gar Mat Fac Was Fac Low Low Dat Pro Fac Low Low Zio Pro Fac Was Fac Upp Upp War Pro Fac Was Fac Ext Cet Arc Hub Distress Signals 38 | . 1 . . . 3 . 4 3 . . . . . . 1 . . . . 1 . 6 . . . . 1 . 5 8 1 . 4 Communications Jammed . | . . . . . . . . . . . . . . . . . . . . . . . . . . . . . . . . . . Distress Signals . | . . . . . . . . . . . . . . . . . . . . . . . . . . . . . . . . . . Times Spotted 594 | . 21 2 . . 40 22 38 40 7 23 10 . 4 11 40 6 14 . 4 22 5 46 . 15 19 7 53 6 60 33 10 8 28 Peak Tracking Total 28 | . 5 2 . . 6 5 7 5 6 4 8 . 4 7 11 10 14 . 4 5 5 8 . 6 12 4 11 6 11 11 5 8 28 Tactical Retreats 102 | . 1 . . . 1 . . 11 1 6 2 . . 2 14 1 1 . 1 7 . 10 . 4 1 1 17 . 17 2 . . 2 Traps | -11 -10 -10 -10 -9 -8 -8 -8 -7 -7 -7 -7 -7 -7 -6 -6 -6 -6 -6 -5 -5 -5 -5 -5 -5 -5 -4 -4 -4 -4 -4 -4 -4 -4 ------- Run | Yrd Mat Min Exi Min Mat Gar Mat Fac Was Fac Low Low Dat Pro Fac Low Low Zio Pro Fac Was Fac Upp Upp War Pro Fac Was Fac Ext Cet Arc Hub Traps Triggered 22 | . 2 . . . 1 1 . 2 . . . . . . 2 . . . . 1 . 2 . . . . 6 . 2 2 . . 1 Indirectly 1 | . . . . . . . . . . . . . . . . . . . . . . . . . . . . . . . . . 1 Trap Hack Attempts 50 | . . . . . . . . 40 . 5 . . . . 5 . . . . . . . . . . . . . . . . . . Triggered 1 | . . . . . . . . 1 . . . . . . . . . . . . . . . . . . . . . . . . . Disarmed 20 | . . . . . . . . 4 . . . . . . 6 . . . . . . . . . . . . . 10 . . . . Reprogrammed 48 | . . . . . . . . 10 . 2 . . . . 1 . . . . 12 . 11 . . . . 12 . . . . . . Reused 20 | . . . . . . . . . . . . . . . 1 . . . . 7 . 6 . . . . 6 . . . . . . Traps Extracted 20 | . . . . . . . . 10 . . . . . . . . . . . 6 . 4 . . . . . . . . . . . Installed 6 | . . . . . . . . . . . . . . . . . . . . 3 . 3 . . . . . . . . . . . Triggered 27 | . . . . . . . . . . . . . . 2 1 . . . . 7 . 7 . 1 3 . 6 . . . . . . Most Traps Carried 14 | . . . . . . . . 10 10 10 10 10 10 10 10 10 10 10 10 12 10 14 11 11 11 11 11 8 8 8 8 8 8 Objects Rigged 2 | . . . . . . . . . . . . . . . . . . . . . . . . . . . . . . . . . 2 Machines | -11 -10 -10 -10 -9 -8 -8 -8 -7 -7 -7 -7 -7 -7 -6 -6 -6 -6 -6 -5 -5 -5 -5 -5 -5 -5 -4 -4 -4 -4 -4 -4 -4 -4 ---------- Run | Yrd Mat Min Exi Min Mat Gar Mat Fac Was Fac Low Low Dat Pro Fac Low Low Zio Pro Fac Was Fac Upp Upp War Pro Fac Was Fac Ext Cet Arc Hub Machines Disabled 45 | . . . . . 1 4 4 5 . . . . 1 . . . . . . . . 4 1 1 2 . 4 . 6 1 1 . 10 Max in Single Turn 10 | . . . . . 1 1 1 2 . . . . 1 . . . . . . . . 2 1 1 2 . 3 . 4 . . . 10 Garrison Access 22 | . . . . . . . . 4 . 3 . . . . 3 . . . . 4 . 2 . . . . 3 . 3 . . . . Garrison Relay 3 | . . . . . . 3 . . . . . . . . . . . . . . . . . . . . . . . . . . . Network Hub 1 | . . . . . . . . . . . . . . . . . . . . . . . . . . . . . . . . . 1 Machines Repaired . | . . . . . . . . . . . . . . . . . . . . . . . . . . . . . . . . . . Machines Dismantled . | . . . . . . . . . . . . . . . . . . . . . . . . . . . . . . . . . . Machines Sabotaged . | . . . . . . . . . . . . . . . . . . . . . . . . . . . . . . . . . . Overloaded Fab Kills . | . . . . . . . . . . . . . . . . . . . . . . . . . . . . . . . . . . Hacking | -11 -10 -10 -10 -9 -8 -8 -8 -7 -7 -7 -7 -7 -7 -6 -6 -6 -6 -6 -5 -5 -5 -5 -5 -5 -5 -4 -4 -4 -4 -4 -4 -4 -4 --------- Run | Yrd Mat Min Exi Min Mat Gar Mat Fac Was Fac Low Low Dat Pro Fac Low Low Zio Pro Fac Was Fac Upp Upp War Pro Fac Was Fac Ext Cet Arc Hub Machines Accessed 252 | . 8 . 2 . 8 . 12 34 . 29 . . 4 1 30 . . . . 26 . 25 . . 5 . 27 . 24 8 3 1 5 Terminals 132 | . 6 . . . 5 . 7 16 . 15 . . . 1 16 . . . . 13 . 12 . . . . 13 . 12 8 3 . 5 Fabricators 38 | . . . . . . . . 6 . 6 . . . . 6 . . . . 5 . 5 . . . . 5 . 5 . . . . Repair Stations 21 | . . . . . . . 1 1 . 3 . . . . 4 . . . . 1 . 3 . . . . 5 . 3 . . . . Recycling Units 20 | . 2 . . . 2 . 2 5 . 1 . . . . . . . . . 2 . 2 . . . . 2 . 2 . . . . Scanalyzers 7 | . . . . . . . 2 2 . 1 . . . . . . . . . 1 . 1 . . . . . . . . . . . Garrison Access 22 | . . . . . 1 . . 4 . 3 . . . . 4 . . . . 4 . 2 . . . . 2 . 2 . . . . Total Hacks 835 | . 15 . 2 . 16 . 35 108 . 85 . . 30 1 81 . . . . 84 . 87 . . 18 . 85 . 121 19 9 25 14 Successful 696 | . 6 . 2 . 8 . 19 84 . 69 . . 30 1 70 . . . . 68 . 75 . . 18 . 74 . 109 18 9 25 11 Failed 138 | . 9 . . . 8 . 16 24 . 16 . . . . 11 . . . . 16 . 12 . . . . 10 . 12 1 . . 3 Catastrophic 12 | . 2 . . . 1 . 3 . . 2 . . . . 1 . . . . 1 . 1 . . . . 1 . . . . . . Database Lockouts 1 | . . . . . . . . . . . . . . . . . . . . . . . . . . . 1 . . . . . . Manual 366 | . 14 . 1 . 12 . 24 35 . 42 . . . . 37 . . 1 . 40 . 37 1 . 1 . 42 . 51 13 1 . 14 Terminals 469 | . 13 . . . 12 . 27 69 . 47 . . . 1 46 . . . . 54 . 47 . . . . 50 . 61 19 9 . 14 Fabricators 149 | . . . . . . . . 23 . 25 . . . . 23 . . . . 18 . 21 . . . . 11 . 28 . . . . Repair Stations 68 | . . . . . . . 2 4 . 6 . . . . 8 . . . . 3 . 8 . . . . 15 . 22 . . . . Recycling Units 35 | . 2 . . . 3 . 2 5 . 1 . . . . . . . . . 3 . 5 . . . . 7 . 7 . . . . Scanalyzers 15 | . . . . . . . 4 3 . 2 . . . . . . . . . 2 . 4 . . . . . . . . . . . Garrison Access 24 | . . . . . 1 . . 4 . 4 . . . . 4 . . . . 4 . 2 . . . . 2 . 3 . . . . Terminal Hacks 346 | . 2 . 2 . 4 . 7 42 . 26 . . 30 1 25 . . . . 37 . 31 . . 18 . 29 . 37 16 9 25 5 Record 59 | . . . 1 . . . . . . . . . 11 1 . . . . . . . . . . 12 . . . 1 . 8 25 . Part Schematic 25 | . 1 . . . . . . 4 . 2 . . 10 . 1 . . . . 4 . 1 . . . . 1 . 1 . . . . Robot Schematic 6 | . . . . . . . . . . . . . 6 . . . . . . . . . . . . . . . . . . . . Robot Analysis 6 | . . . . . . . . . . . . . . . 1 . . . . . . 1 . . . . 2 . 2 . . . . Prototype ID Bank 27 | . . . . . . . . 2 . 2 . . 3 . 3 . . . . 3 . 2 . . 5 . 2 . 5 . . . . Open Door 8 | . . . . . . . . . . . . . . . . . . . . . . . . . 1 . . . . 6 1 . . Level Access Points 4 | . . . . . . . . 1 . 2 . . . . . . . . . . . . . . . . . . . . . . 1 Branch Access Points 7 | . . . . . . . 1 1 . 1 . . . . 1 . . . . 1 . 1 . . . . 1 . . . . . . Emergency Access Points 7 | . . . . . . . . 1 . 2 . . . . 1 . . . . 2 . . . . . . . . 1 . . . . Machine Index 9 | . . . . . . . . 1 . 1 . . . . 1 . . . . 1 . 1 . . . . 1 . 1 1 . . 1 Terminal Index 5 | . . . . . . . 1 1 . 1 . . . . 1 . . . . . . . . . . . 1 . . . . . . Recycling Unit Index 1 | . . . . . 1 . . . . . . . . . . . . . . . . . . . . . . . . . . . . Alert Level 16 | . . . . . . . 1 5 . 2 . . . . . . . . . 1 . 3 . . . . 1 . 2 1 . . . Unreport Threat 25 | . 1 . . . . . 2 4 . . . . . . 1 . . . . 3 . 4 . . . . . . 3 7 . . . Locate Traps 31 | . . . . . 2 . . 6 . 1 . . . . 5 . . . . 7 . 4 . . . . 3 . 3 . . . . Disarm Traps 4 | . . . . . . . . 1 . . . . . . 1 . . . . . . . . . . . . . 2 . . . . Reprogram Traps 7 | . . . . . . . . 1 . . . . . . . . . . . 2 . 2 . . . . 2 . . . . . . Dispatch Records 1 | . . . . . . . . . . . . . . . . . . . . . . . . . . . . . 1 . . . . Maintenance Status 3 | . . . . . . . . . . . . . . . . . . . . 1 . . . . . . 1 . 1 . . . . Surveillance Status 1 | . . . . . . . . 1 . . . . . . . . . . . . . . . . . . . . . . . . . Recall Investigation 4 | . . . . . . . . 2 . . . . . . . . . . . . . 2 . . . . . . . . . . . Recall Extermination 6 | . . . . . . . . 1 . . . . . . . . . . . 1 . 1 . . . . 1 . 2 . . . . Recall Reinforcements 3 | . . . . . . . . 1 . . . . . . 1 . . . . . . 1 . . . . . . . . . . . Hauler Manifests 18 | . . . . . 1 . 1 2 . 2 . . . . 3 . . . . 2 . 2 . . . . 2 . 3 . . . . Registered Components 7 | . . . . . . . . 1 . 1 . . . . 1 . . . . 1 . 1 . . . . 1 . 1 . . . . Registered Prototypes 8 | . . . . . . . . 1 . 2 . . . . 1 . . . . 1 . 1 . . . . 1 . 1 . . . . Zone Layout 47 | . . . . . . . 1 5 . 7 . . . . 3 . . . . 7 . 4 . . . . 9 . 7 1 . . 3 Derelict Proto ID Bank 1 | . . . 1 . . . . . . . . . . . . . . . . . . . . . . . . . . . . . . Fabricator Hacks 98 | . . . . . . . . 13 . 17 . . . . 16 . . . . 14 . 12 . . . . 7 . 19 . . . . Network Status 3 | . . . . . . . . 1 . . . . . . . . . . . . . . . . . . 1 . 1 . . . . Load Schematic 63 | . . . . . . . . 8 . 11 . . . . 11 . . . . 9 . 8 . . . . 5 . 11 . . . . Build 32 | . . . . . . . . 4 . 6 . . . . 5 . . . . 5 . 4 . . . . 1 . 7 . . . . Repair Station Hacks 61 | . . . . . . . 2 4 . 6 . . . . 8 . . . . 1 . 8 . . . . 14 . 18 . . . . Scan Component 27 | . . . . . . . 1 2 . 2 . . . . 4 . . . . . . 4 . . . . 6 . 8 . . . . Repair 27 | . . . . . . . 1 2 . 2 . . . . 4 . . . . . . 4 . . . . 6 . 8 . . . . Refit 7 | . . . . . . . . . . 2 . . . . . . . . . 1 . . . . . . 2 . 2 . . . . Recycling Unit Hacks 6 | . . . . . . . . 1 . . . . . . . . . . . 1 . 1 . . . . 2 . 1 . . . . Retrieve Components 6 | . . . . . . . . 1 . . . . . . . . . . . 1 . 1 . . . . 2 . 1 . . . . Scanalyzer 15 | . . . . . . . 4 3 . 2 . . . . . . . . . 2 . 4 . . . . . . . . . . . Insert Component 7 | . . . . . . . 2 2 . 1 . . . . . . . . . 1 . 1 . . . . . . . . . . . Analyze 8 | . . . . . . . 2 1 . 1 . . . . . . . . . 1 . 3 . . . . . . . . . . . Garrison Access Hacks 21 | . . . . . 1 . . 4 . 3 . . . . 3 . . . . 4 . 2 . . . . 2 . 2 . . . . Unlock Access 1 | . . . . . 1 . . . . . . . . . . . . . . . . . . . . . . . . . . . . Seal Access 20 | . . . . . . . . 4 . 3 . . . . 3 . . . . 4 . 2 . . . . 2 . 2 . . . . Unauthorized Hacks 149 | . 4 . . . 3 . 6 17 . 15 . . . . 18 . . . . 9 . 17 . . . . 20 . 32 2 . . 6 Terminals 81 | . 2 . . . 1 . 4 9 . 9 . . . . 11 . . . . 3 . 6 . . . . 11 . 17 2 . . 6 Track 7 | . . . . . . . . 1 . . . . . . . . . . . . . . . . . . 1 . 3 . . . 2 Assimilate 32 | . . . . . . . 1 4 . 6 . . . . 6 . . . . . . 2 . . . . 6 . 6 1 . . . Botnet 20 | . . . . . . . 2 2 . 2 . . . . 3 . . . . 2 . 2 . . . . 2 . 5 . . . . Detonate 1 | . . . . . . . . . . . . . . . . . . . . . . . . . . . . . . . . . 1 Disrupt 9 | . . . . . . . . 1 . . . . . . 1 . . . . . . 1 . . . . 1 . 2 1 . . 2 Operators 11 | . 2 . . . 1 . 1 1 . 1 . . . . 1 . . . . 1 . 1 . . . . 1 . 1 . . . . Sabotage 1 | . . . . . . . . . . . . . . . . . . . . . . . . . . . . . . . . . 1 Fabricators 39 | . . . . . . . . 4 . 5 . . . . 6 . . . . 4 . 7 . . . . 4 . 9 . . . . Prioritize 8 | . . . . . . . . . . . . . . . 1 . . . . . . 3 . . . . . . 4 . . . . Haulers 1 | . . . . . . . . . . . . . . . . . . . . . . . . . . . . . 1 . . . . Recompile 30 | . . . . . . . . 4 . 5 . . . . 5 . . . . 4 . 4 . . . . 4 . 4 . . . . Repair Stations 1 | . . . . . . . . . . . . . . . . . . . . . . . . . . . . . 1 . . . . Mechanics 1 | . . . . . . . . . . . . . . . . . . . . . . . . . . . . . 1 . . . . Recycling Units 27 | . 2 . . . 2 . 2 4 . 1 . . . . . . . . . 2 . 4 . . . . 5 . 5 . . . . Reject 4 | . . . . . . . . . . . . . . . . . . . . . . 1 . . . . 2 . 1 . . . . Recyclers 4 | . . . . . . . . . . . . . . . . . . . . . . 1 . . . . 1 . 2 . . . . Mask 8 | . . . . . . . . . . . . . . . . . . . . 2 . 2 . . . . 2 . 2 . . . . Tunnel 11 | . 2 . . . 2 . 2 4 . 1 . . . . . . . . . . . . . . . . . . . . . . . Scanalyzers . | . . . . . . . . . . . . . . . . . . . . . . . . . . . . . . . . . . Garrison Access 1 | . . . . . . . . . . . . . . . 1 . . . . . . . . . . . . . . . . . . Broadcast 1 | . . . . . . . . . . . . . . . 1 . . . . . . . . . . . . . . . . . . Data Cores Recovered 1 | . . . . . . . . 1 . . . . . . . . . . . . . . . . . . . . . . . . . Used . | . . . . . . . . . . . . . . . . . . . . . . . . . . . . . . . . . . Hacking Detections 153 | . 6 . . . 6 . 9 21 . 24 . . . . 25 . . . . 14 . 14 . . . . 16 . 11 2 1 . 4 Full Trace Events 15 | . 1 . . . . . 1 1 . 1 . . . . 2 . . . . 2 . 2 . . . . 3 . 1 . . . 1 Feedback Events 2 | . . . . . . . . . . . . . . . 2 . . . . . . . . . . . . . . . . . . Corruption 1 | . . . . . . . . . . . . . . . 1 . . . . . . . . . . . . . . . . . . Hackware Fried 1 | . . . . . . . . . . . . . . . 1 . . . . . . . . . . . . . . . . . . Feedback Blocked . | . . . . . . . . . . . . . . . . . . . . . . . . . . . . . . . . . . Robot Schematics Acquired 7 | . . . . . . . . . . . . . 6 . . . . 1 . . . . . . . . . . . . . . . Robots Built . | . . . . . . . . . . . . . . . . . . . . . . . . . . . . . . . . . . Authchips . | . . . . . . . . . . . . . . . . . . . . . . . . . . . . . . . . . . Time . | . . . . . . . . . . . . . . . . . . . . . . . . . . . . . . . . . . Total Robot Build Rating . | . . . . . . . . . . . . . . . . . . . . . . . . . . . . . . . . . . Part Schematics Acquired 46 | . 1 . . . . . 2 5 . 3 . . 10 . 1 . . 15 . 5 . 2 . . . . 1 . 1 . . . . Parts Built 35 | . . . . . . . . 5 . 7 . . . . 5 . . . . 5 . 4 . . . . 1 . 8 . . . . Authchips 28 | . . . . . . . . 4 . 5 . . . . 5 . . . . 4 . 4 . . . . . . 6 . . . . Time 2323 | . . . . . . . . 148 . 275 . . . . 323 . . . . 269 . 542 . . . . 25 . 741 . . . . Total Part Build Rating 181 | . . . . . . . . 22 . 35 . . . . 29 . . . . 25 . 27 . . . . 1 . 42 . . . . Parts Repaired 27 | . . . . . . . 1 2 . 2 . . . . 4 . . . . . . 4 . . . . 6 . 8 . . . . Time 1844 | . . . . . . . 26 108 . 133 . . . . 199 . . . . . . 241 . . . . 423 . 714 . . . . Parts Recycled . | . . . . . . . . . . . . . . . . . . . . . . . . . . . . . . . . . . Recycled Matter . | . . . . . . . . . . . . . . . . . . . . . . . . . . . . . . . . . . Retrieved Matter . | . . . . . . . . . . . . . . . . . . . . . . . . . . . . . . . . . . Retrieved Components 22 | . . . . . . . . 1 . . . . . . . . . . . 8 . 3 . . . . 10 . . . . . . Parts Scanalyzed 6 | . . . . . . . 2 1 . 1 . . . . . . . . . 1 . 1 . . . . . . . . . . . Part Schematics Acquired 6 | . . . . . . . 2 1 . 1 . . . . . . . . . 1 . 1 . . . . . . . . . . . Parts Damaged . | . . . . . . . . . . . . . . . . . . . . . . . . . . . . . . . . . . Bothacking | -11 -10 -10 -10 -9 -8 -8 -8 -7 -7 -7 -7 -7 -7 -6 -6 -6 -6 -6 -5 -5 -5 -5 -5 -5 -5 -4 -4 -4 -4 -4 -4 -4 -4 ------------ Run | Yrd Mat Min Exi Min Mat Gar Mat Fac Was Fac Low Low Dat Pro Fac Low Low Zio Pro Fac Was Fac Upp Upp War Pro Fac Was Fac Ext Cet Arc Hub Used RIF Installer . | . . . . . . . . . . . . . . . . . . . . . . . . . . . . . . . . . . Robots Hacked 17 | . . . 5 1 . . . 3 . . . . 1 . 3 . . . . 1 . . . . . . 1 . . 1 1 . . Non-combat 13 | . . . 3 1 . . . 3 . . . . . . 3 . . . . 1 . . . . . . 1 . . 1 . . . Combat 4 | . . . 2 . . . . . . . . . 1 . . . . . . . . . . . . . . . . . 1 . . Robot Hacks Applied 18 | . . . 6 1 . . . 3 . . . . 1 . 3 . . . . 1 . . . . . . 1 . . 1 1 . . parse_system 9 | . . . 6 1 . . . . . . . . 1 . . . . . . . . . . . . . . . . . 1 . . no_distress 1 | . . . . . . . . . . . . . . . 1 . . . . . . . . . . . . . . . . . . find_chute 5 | . . . . . . . . 3 . . . . . . . . . . . 1 . . . . . . 1 . . . . . . find_fabricator 1 | . . . . . . . . . . . . . . . 1 . . . . . . . . . . . . . . . . . . find_recycling 2 | . . . . . . . . . . . . . . . 1 . . . . . . . . . . . . . . 1 . . . Relay Couplers Released 12 | . . . . . . 10 . . . . . . . . . . . . . . . . . . . . 1 . 1 . . . . Machine Destruction 12 | . . . . . . 10 . . . . . . . . . . . . . . . . . . . . 1 . 1 . . . . Fabnet Peak Effective % . | . . . . . . . . . . . . . . . . . . . . . . . . . . . . . . . . . . Robots Rewired 11 | . . . . . . . . . . . . . . . . . . . . . . . . . . . . . . 11 . . . Allies Hacked . | . . . . . . . . . . . . . . . . . . . . . . . . . . . . . . . . . . Hacks Repelled . | . . . . . . . . . . . . . . . . . . . . . . . . . . . . . . . . . . Allies | -11 -10 -10 -10 -9 -8 -8 -8 -7 -7 -7 -7 -7 -7 -6 -6 -6 -6 -6 -5 -5 -5 -5 -5 -5 -5 -4 -4 -4 -4 -4 -4 -4 -4 -------- Run | Yrd Mat Min Exi Min Mat Gar Mat Fac Was Fac Low Low Dat Pro Fac Low Low Zio Pro Fac Was Fac Upp Upp War Pro Fac Was Fac Ext Cet Arc Hub Total Allies 49 | . . . . . . . . 4 . 6 . . . . 4 . . . . . 1 2 . . . . 4 . 3 20 5 . . Largest Group 9 | . . . . . . . . 1 . 3 . . . . 2 . . . . . 1 1 . . . . 2 . 1 6 9 8 4 Highest-Rated Group 774 | . . . . . . . . 26 . 46 . . . . 52 . . . . . 31 26 . . . . 36 . 10 369 774 736 384 Highest-Rated Ally 159 | . . . . . . . . 26 . 26 . . . . 26 . . . . . 31 26 . . . . 26 . 10 159 159 159 96 Total Orders . | . . . . . . . . . . . . . . . . . . . . . . . . . . . . . . . . . . Ally Attacks 166 | . . . . . . . . . . . . . . . . . . . . . 6 . . . . . . . . 59 56 21 24 Total Damage 6024 | . . . . . . . . . . . . . . . . . . . . . 86 . . . . . . . . 2051 1984 932 971 Kills 33 | . . . . . . . . . . . . . . . . . . . . . . . . . . . . . . 12 10 5 6 Allies Corrupted 1 | . . . . . . . . . . 1 . . . . . . . . . . . . . . . . . . . . . . . Allies Melted . | . . . . . . . . . . . . . . . . . . . . . . . . . . . . . . . . . . Intel | -11 -10 -10 -10 -9 -8 -8 -8 -7 -7 -7 -7 -7 -7 -6 -6 -6 -6 -6 -5 -5 -5 -5 -5 -5 -5 -4 -4 -4 -4 -4 -4 -4 -4 ------- Run | Yrd Mat Min Exi Min Mat Gar Mat Fac Was Fac Low Low Dat Pro Fac Low Low Zio Pro Fac Was Fac Upp Upp War Pro Fac Was Fac Ext Cet Arc Hub Robot Analysis Total 6 | . . . . . . . . . . . . . . . 1 . . . . . . 1 . . . . 2 . 2 . . . . Derelict Logs Recovered 10 | . . . . . . . . . . . 1 . . 2 . . 2 . 1 . . . 1 . . 3 . . . . . . . Drone Launches . | . . . . . . . . . . . . . . . . . . . . . . . . . . . . . . . . . . Drone Recoveries . | . . . . . . . . . . . . . . . . . . . . . . . . . . . . . . . . . . Exploration | -11 -10 -10 -10 -9 -8 -8 -8 -7 -7 -7 -7 -7 -7 -6 -6 -6 -6 -6 -5 -5 -5 -5 -5 -5 -5 -4 -4 -4 -4 -4 -4 -4 -4 ------------- Run | Yrd Mat Min Exi Min Mat Gar Mat Fac Was Fac Low Low Dat Pro Fac Low Low Zio Pro Fac Was Fac Upp Upp War Pro Fac Was Fac Ext Cet Arc Hub Turns Passed 25301 | 188 1385 850 1590 360 2266 1224 2185 2754 135 1265 92 122 121 146 1613 57 163 386 119 1138 29 1229 65 249 391 248 1316 63 2542 536 256 64 154 Spaces Moved 35976 | 93 525 263 494 98 787 445 760 4357 240 3190 283 391 207 500 3702 266 499 985 414 2876 91 2862 194 460 727 536 2996 119 4961 894 200 125 436 Core 73 | 5 . . . . . . . . . . . . . . . . . . . . . . . . . . 48 18 . . . . 2 Treads 3460 | 88 525 263 494 98 787 445 760 . . . . . . . . . . . . . . . . . . . . . . . . . . Legs . | . . . . . . . . . . . . . . . . . . . . . . . . . . . . . . . . . . Wheels . | . . . . . . . . . . . . . . . . . . . . . . . . . . . . . . . . . . Hover . | . . . . . . . . . . . . . . . . . . . . . . . . . . . . . . . . . . Flight 32443 | . . . . . . . . 4357 240 3190 283 391 207 500 3702 266 499 985 414 2876 91 2862 194 460 727 536 2948 101 4961 894 200 125 434 Fastest Speed 6 | 50 160 240 320 320 236 240 240 27 27 23 23 23 18 23 21 21 21 21 21 21 25 18 25 15 25 25 6 20 20 21 28 28 28 Average Speed 47 | 154 234 313 320 320 238 241 240 29 27 23 23 23 22 23 21 21 21 21 21 25 25 25 25 24 25 25 22 47 26 28 30 28 31 Slowest Speed 700 | 160 240 320 320 320 243 242 240 101 98 27 23 23 23 23 94 21 21 21 21 91 25 91 25 25 25 25 150 150 100 101 101 28 700 Overloaded Moves 155 | . . . . . . . . . . . . . 25 . . . . . . . . 26 . 7 . . 69 . 3 25 . . . Propulsion Burnouts . | . . . . . . . . . . . . . . . . . . . . . . . . . . . . . . . . . . Robots Hopped 134 | . . . . . . . . 21 . 36 . . . . 35 . 1 . . 12 . 5 . . . . 6 . 7 4 . 2 5 Cave-ins Triggered . | . . . . . . . . . . . . . . . . . . . . . . . . . . . . . . . . . . Exploration Rate (%) 65 | 6 89 73 79 29 66 55 50 77 99 59 48 57 81 77 75 55 66 86 62 56 80 57 40 66 89 68 64 78 75 75 70 78 50 Regions Visited 33 Branch Regions 19 Pre-discovered Areas 22 | . 2 . 1 . 2 . 2 4 . 1 1 . 1 1 . . 1 2 . . . . . . 3 1 . . . . . . . Known Exits Taken 7 | . . . . . 1 . . . . 1 . . . 1 1 . . . . . . 1 1 . . . . . 1 . . . . Unknown Exits Taken 19 | 1 1 1 1 1 . . 1 . . . 1 1 1 . . 1 1 1 1 . . . . 1 1 1 . . . 1 1 1 . Scrap Searched 17 | . . . . . . . . . . . . 2 . 1 . 1 2 2 2 . . . 2 2 . 3 . . . . . . . Spaces Dug 612 | . 3 . . 12 17 21 4 67 . 27 . 1 6 5 62 . 3 . 3 25 . 54 1 32 45 21 61 . 67 74 . . 1 Terrain Destroyed 1396 | . 3 . . 26 42 52 26 108 . 27 . 1 6 5 62 . 18 . 3 92 . 108 1 42 53 83 68 . 138 211 50 . 171 Melee 420 | . . . . . . . 4 67 . 27 . 1 6 5 62 . 3 . 3 19 . 42 1 6 45 21 50 . 56 1 . . 1 Projectile 35 | . . . . . . . . . . . . . . . . . . . . 6 . 6 . 1 . . 11 . 11 . . . . AOE 941 | . 3 . . 26 42 52 22 41 . . . . . . . . 15 . . 67 . 60 . 35 8 62 7 . 71 210 50 . 170 Terrain Rammed . | . . . . . . . . . . . . . . . . . . . . . . . . . . . . . . . . . . Walls Destroyed . | . . . . . . . . . . . . . . . . . . . . . . . . . . . . . . . . . . Machines Disabled . | . . . . . . . . . . . . . . . . . . . . . . . . . . . . . . . . . . Actions | -11 -10 -10 -10 -9 -8 -8 -8 -7 -7 -7 -7 -7 -7 -6 -6 -6 -6 -6 -5 -5 -5 -5 -5 -5 -5 -4 -4 -4 -4 -4 -4 -4 -4 --------- Run | Yrd Mat Min Exi Min Mat Gar Mat Fac Was Fac Low Low Dat Pro Fac Low Low Zio Pro Fac Was Fac Upp Upp War Pro Fac Was Fac Ext Cet Arc Hub Total 42407 | 114 620 277 503 126 1031 520 956 5649 309 3589 303 404 242 517 4313 266 547 1163 439 3179 96 3248 205 569 849 603 3493 125 6029 1136 387 151 449 Wait 4396 | . 21 6 . 9 56 12 71 1035 52 328 17 1 9 8 475 1 36 147 23 159 3 252 2 88 30 30 312 3 863 135 176 29 7 Move 35685 | 92 524 262 493 97 786 444 759 4316 239 3120 282 390 206 499 3631 265 496 984 413 2853 90 2851 193 459 726 535 2984 118 4947 885 199 120 427 Hop 127 | . . . . . . . . 20 . 33 . . . . 35 . 1 . . 11 . 5 . . . . 6 . 6 4 . 2 4 Pick Up 204 | 5 20 1 1 4 29 . 6 23 1 14 1 . 1 . 13 . . 10 . 14 2 13 . . . 2 20 . 23 . . . 1 Fast Attach 140 | 7 2 . . . 10 5 3 14 8 7 . 1 . . 16 . 1 5 . 16 . 8 4 1 5 . 8 1 18 . . . . Attach 154 | . . 1 1 2 7 . 3 20 . 9 . 1 2 1 18 . 3 . . 12 . 16 . 3 8 1 12 . 21 9 2 . 2 Detach 130 | . 2 . 2 1 6 . 1 12 . 9 . 2 . 2 14 . 3 1 . 12 . 11 . 2 12 2 2 2 19 9 1 . 3 Swap 156 | . 7 1 . 2 12 10 18 12 . 10 . . . . 3 . . 1 . 18 . 11 . . 2 3 17 . 19 7 2 . 1 Drop 218 | . 11 . . . 36 6 10 28 9 12 . . 3 . 11 . 1 13 . 25 1 11 4 1 4 . 15 1 14 1 . . 1 Fire 381 | 10 31 6 . 8 88 41 79 8 . . . . . . . . 3 . . 11 . 13 . 3 11 5 13 . 20 23 6 . 2 Melee 671 | . 1 . 6 1 . . 5 105 . 42 3 9 21 7 92 . 3 2 3 45 . 54 2 12 51 25 74 . 79 27 1 . 1 Ram . | . . . . . . . . . . . . . . . . . . . . . . . . . . . . . . . . . . Kick . | . . . . . . . . . . . . . . . . . . . . . . . . . . . . . . . . . . Crush 5 | . 1 . . 2 1 . 1 . . . . . . . . . . . . . . . . . . . . . . . . . . Escape Stasis 84 | . . . . . . 2 . 16 . . . . . . . . . . . . . . . . . . 30 . . 36 . . . Rewire . | . . . . . . . . . . . . . . . . . . . . . . . . . . . . . . . . . . Trap 56 | . . . . . . . . 40 . 5 . . . . 5 . . . . 3 . 3 . . . . . . . . . . . Miscellaneous . | . . . . . . . . . . . . . . . . . . . . . . . . . . . . . . . . . . Route ------- -11/Scrapyard -10/Materials (discovered 5 exits: [*Mat x3] / [*Min x2]) -10/Mines (discovered 3 exits: [*Mat x2] / *Exi) -10/Exiles -9/Mines -8/Materials (discovered 4 exits: *Fac x3 / Gar) -8/Garrison (discovered 3 exits: *Mat x3) -8/Materials -7/Factory (discovered 7 exits: *Fac x4 / Sto / *Low x2) -7/Waste -7/Factory (discovered 8 exits: *Fac x4 / *Sto x2 / *Low x2) -7/Lower Caves -7/Lower Caves -7/Data Miner -6/Proximity Caves -6/Factory (discovered 5 exits: *Fac x3 / *Low x2) -6/Lower Caves -6/Lower Caves (discovered 2 exits: *Fac / *Zio) -6/Zion -5/Proximity Caves -5/Factory (discovered 4 exits: *Fac x2 / *Upp x2) -5/Waste -5/Factory (discovered 3 exits: *Fac / *Upp x2) -5/Upper Caves -5/Upper Caves (discovered 2 exits: *Fac / *War) -5/Warlord -4/Proximity Caves -4/Factory (discovered 6 exits: *Res / Upp x2 / *Ext x2 / Arm) -4/Waste -4/Factory (discovered 6 exits: *Res x2 / *Upp / *Ext x2 / *Arm) -4/Extension (discovered 2 exits: *Res / *Cet) -4/Cetus -4/Archives (discovered 2 exits: *Hub x2) -4/Hub_04(d) (discovered 4 exits: *Res x4) History --------- Turn | Location | Event 3 | -11/Scrapyard | Discovered new exit (range 15) 189 | -11/Scrapyard | Entered Materials 315 | -10/Materials | Build established: Mutant 404 | -10/Materials | Discovered new exit (range 7) 771 | -10/Materials | Discovered new exit (range 5) 1017 | -10/Materials | Discovered new exit (range 15) 1246 | -10/Materials | Discovered new exit (range 16) 1477 | -10/Materials | Discovered new exit (range 6) 1574 | -10/Materials | Entered Mines 1582 | -10/Mines | Discovered new exit (range 14) 2176 | -10/Mines | Discovered new exit (range 7) 2412 | -10/Mines | Deemed a non-threat by the Exiles lab entrance 2412 | -10/Mines | Discovered new exit (range 5) 2424 | -10/Mines | Entered Exiles 2512 | -10/Exiles | Met 8R-AWN 2556 | -10/Exiles | Met EX-HEX 2775 | -10/Exiles | Met EX-BIN 2815 | -10/Exiles | Aligned with FarCom system 2818 | -10/Exiles | Given EX-Vault access code 2892 | -10/Exiles | Opened EX-Vault 2911 | -10/Exiles | Found Field Lobotomy Kit 2979 | -10/Exiles | Warned to stay clear of 0b10 Research branches 3539 | -10/Exiles | Met EX-DEC 3666 | -10/Exiles | Visited The Gauntlet 3857 | -10/Exiles | Learned location of Zion (-6) 3963 | -10/Exiles | Discovered new exit (range 14) 4014 | -10/Exiles | Left Exiles lab with Field Lobotomy Kit 4014 | -10/Exiles | Entered Mines 4090 | -9/Mines | Received a Rocket Launcher from a helpful Derelict 4257 | -9/Mines | Discovered new exit (range 13) 4374 | -9/Mines | Entered Materials 4374 | -8/Materials | Evolved 4 slots: Propulsion x2, Utility x2 4681 | -8/Materials | Build established: Scavenger-Mutant 5028 | -8/Materials | Discovered new exit (range 14) 5667 | -8/Materials | Discovered new exit (range 12) 6088 | -8/Materials | Discovered new exit (range 15) 6574 | -8/Materials | Garrison activated, responded to threat 6627 | -8/Materials | Identified exit to Garrison 6640 | -8/Materials | Entered Garrison 6756 | -8/Garrison | Triggered checkpoint 6878 | -8/Garrison | Triggered checkpoint 6890 | -8/Garrison | Discovered new exit (range 12) 7001 | -8/Garrison | Garrison Relay disabled 7022 | -8/Garrison | Triggered checkpoint 7063 | -8/Garrison | Garrison Relay disabled 7268 | -8/Garrison | Triggered checkpoint 7394 | -8/Garrison | Discovered new exit (range 12) 7500 | -8/Garrison | Triggered checkpoint 7532 | -8/Garrison | Garrison Relay disabled 7788 | -8/Garrison | Discovered new exit (range 11) 7864 | -8/Garrison | Entered Materials 8273 | -8/Materials | Discovered new exit (range 15) 8444 | -8/Materials | Core integrity fell below 50% 8877 | -8/Materials | Repaired Lgt. Treads 10049 | -8/Materials | Entered Factory 10049 | -7/Factory | Evolved 2 slots: Utility x2 10175 | -7/Factory | Discovered new exit (range 7) 10340 | -7/Factory | Build established: Hacker-Sprinter 10655 | -7/Factory | Discovered new exit (range 16) 10708 | -7/Factory | Fabricated Imp. Trap Extractor (x2) 11022 | -7/Factory | Discovered new exit (range 5) 11092 | -7/Factory | Fabricated Imp. Hacking Suite? 11145 | -7/Factory | Identified exit to Factory 11242 | -7/Factory | Fabricated Imp. Hacking Suite? 11257 | -7/Factory | Identified exit to Storage 11257 | -7/Factory | Identified exit to Lower Caves 11437 | -7/Factory | Fabricated Cld. VTOL Module (x1) 11697 | -7/Factory | Repaired Imp. Datajack 12266 | -7/Factory | Repaired Cld. VTOL Module 12803 | -7/Factory | Manually triggered Chute Trap 12803 | -7/Factory | Sucked down chute 12803 | -7/Factory | Entered Waste 12805 | -7/Waste | Found Prototype Launcher 12805 | -7/Waste | Identified Scatter Rocket Array 12810 | -7/Waste | Spotted C-40 Crusher 12812 | -7/Waste | Spotted C-40 Crusher 12820 | -7/Waste | Spotted C-40 Crusher 12841 | -7/Waste | Spotted C-40 Crusher 12841 | -7/Waste | Spotted C-40 Crusher 12842 | -7/Waste | Spotted C-40 Crusher 12910 | -7/Waste | Discovered new exit (range 15) 12938 | -7/Waste | Entered Factory 12938 | -7/Factory | Discovered exit to Factory (range 7) 13044 | -7/Factory | Repaired Exp. Cesium-ion Thruster? 13280 | -7/Factory | Fabricated Cld. VTOL Module? 13362 | -7/Factory | Fabricated Cld. VTOL Module? 13570 | -7/Factory | Fabricated Imp. Hacking Suite? 13976 | -7/Factory | Fabricated Hvy. Pick? 14000 | -7/Factory | Repaired Greatsword 14161 | -7/Factory | Fabricated Adv. Hacking Suite (x1) 14199 | -7/Factory | Fabricated Adv. Hacking Suite (x1) 14203 | -7/Factory | Entered Lower Caves 14252 | -7/Lower Caves | Met a Warlord Commander 14253 | -7/Lower Caves | Learned location of Warlord (-5) 14254 | -7/Lower Caves | Warlord Commander delivered Encrypted Comm Array 14264 | -7/Lower Caves | Found Unknown Device 14287 | -7/Lower Caves | Learned Factory emergency access door positions 14291 | -7/Lower Caves | Spotted B-75 Beast 14292 | -7/Lower Caves | Discovered new exit (range 15) 14295 | -7/Lower Caves | Entered another Lower Caves area 14386 | -7/Lower Caves | Discovered new exit (range 4) 14417 | -7/Lower Caves | Entered Data Miner 14417 | -7/Data Miner | Discovered new exit (range 6) 14422 | -7/Data Miner | Met Data Miner 14426 | -7/Data Miner | Learned location of Section 7 (-2) 14426 | -7/Data Miner | Acquired the access code to Warlord's prototype stash 14432 | -7/Data Miner | Received God Mode back door access code from Data Miner 14483 | -7/Data Miner | Data Conduit disabled 14538 | -7/Data Miner | Entered Proximity Caves 14592 | -6/Proximity Caves | Spotted B-75 Beast 14682 | -6/Proximity Caves | Discovered exit to Factory (range 9) 14684 | -6/Proximity Caves | Entered Factory 14684 | -6/Factory | Evolved 2 slots: Propulsion x1, Utility x1 14685 | -6/Factory | Identified exit to Lower Caves 14835 | -6/Factory | Repaired Exp. Cesium-ion Thruster? 14839 | -6/Factory | Repaired Greatsword 14966 | -6/Factory | Repaired Broken Cld. VTOL Module 15066 | -6/Factory | Repaired Greatsword? 15365 | -6/Factory | Discovered new exit (range 15) 15563 | -6/Factory | Fabricated Exp. Utility Shielding (x1) 15656 | -6/Factory | Discovered new exit (range 16) 15777 | -6/Factory | Discovered new exit (range 5) 15912 | -6/Factory | Adv. Hacking Suite fried by hacking feedback 16033 | -6/Factory | Fabricated Adv. Hacking Suite (x1) 16089 | -6/Factory | Fabricated Adv. Hacking Suite? 16245 | -6/Factory | Fabricated Adv. Hacking Suite? 16292 | -6/Factory | Fabricated Adv. Hacking Suite (x1) 16297 | -6/Factory | Entered Lower Caves 16307 | -6/Lower Caves | Encountered a Warlord checkpoint 16327 | -6/Lower Caves | Spotted B-75 Beast 16343 | -6/Lower Caves | Attracted the attention of an 0b10 outpost 16352 | -6/Lower Caves | Discovered new exit (range 10) 16354 | -6/Lower Caves | Entered another Lower Caves area 16377 | -6/Lower Caves | Learned Factory trap positions 16377 | -6/Lower Caves | Discovered new exit (range 11) 16497 | -6/Lower Caves | Attracted the attention of an 0b10 outpost 16514 | -6/Lower Caves | Discovered new exit (range 15) 16517 | -6/Lower Caves | Entered Zion 16528 | -6/Zion | Given A8's code to call for help 16533 | -6/Zion | Found CR-A16's Pointy Stick 16547 | -6/Zion | Discovered new exit (range 12) 16558 | -6/Zion | Found Prototype Processor 16559 | -6/Zion | Found Prototype Hackware 16560 | -6/Zion | Found Prototype Processor 16561 | -6/Zion | Identified Exp. System Shield 16561 | -6/Zion | Found Prototype Processor 16568 | -6/Zion | Identified Spectral Analyzer 16575 | -6/Zion | Identified Exp. Terrain Scan Processor 16599 | -6/Zion | Found Prototype Processor 16606 | -6/Zion | Identified Exp. Signal Interpreter 16644 | -6/Zion | Identified Exp. Armor Integrity Analyzer 16727 | -6/Zion | System corruption cleaned by Quarantine Array 16761 | -6/Zion | Found Prototype Special Weapon 16761 | -6/Zion | Identified RU-N14's Throwing Claymores 16803 | -6/Zion | Rebuked by Imprinter 16864 | -6/Zion | Received a hallucinogenic algorithm 16903 | -6/Zion | Entered Proximity Caves 16905 | -5/Proximity Caves | Spotted B-75 Beast 17004 | -5/Proximity Caves | Learned 8 Factory zone layouts 17019 | -5/Proximity Caves | Discovered new exit (range 14) 17022 | -5/Proximity Caves | Entered Factory 17022 | -5/Factory | Evolved 2 slots: Utility x2 17024 | -5/Factory | Loaded intel: 100 trap records 17168 | -5/Factory | Discovered new exit (range 12) 17208 | -5/Factory | Identified exit to Upper Caves 17418 | -5/Factory | Spotted B-75 Beast 17493 | -5/Factory | Discovered new exit (range 9) 17623 | -5/Factory | Fabricated Cld. Nuclear Pulse Thruster? 17636 | -5/Factory | Build established: Wizard-Sprinter 17800 | -5/Factory | Fabricated Cld. Nuclear Pulse Thruster (x1) 17858 | -5/Factory | Fabricated Cld. Nuclear Pulse Thruster? 17977 | -5/Factory | Fabricated Cld. Nuclear Pulse Thruster? 18016 | -5/Factory | Cargo convoy interrupted 18095 | -5/Factory | Found Prototype Launcher 18143 | -5/Factory | Fabricated Lrg. Storage Unit (x1) 18160 | -5/Factory | Manually triggered Chute Trap 18160 | -5/Factory | Sucked down chute 18160 | -5/Factory | Entered Waste 18161 | -5/Waste | Met a frightened Derelict 18166 | -5/Waste | Spotted C-40 Crusher 18168 | -5/Waste | Spotted C-40 Crusher 18175 | -5/Waste | EMP discharged 18180 | -5/Waste | Spotted C-40 Crusher 18182 | -5/Waste | Spotted C-40 Crusher 18183 | -5/Waste | Spotted C-40 Crusher 18185 | -5/Waste | Discovered new exit (range 16) 18189 | -5/Waste | Entered Factory 18413 | -5/Factory | Identified Hellfire Missile Launcher 18489 | -5/Factory | Search patrols dispatched 18525 | -5/Factory | Fabricated Exp. Hacking Suite? 18550 | -5/Factory | Repaired Cld. Nuclear Pulse Thruster? 18587 | -5/Factory | Spotted B-75 Beast 18637 | -5/Factory | Repaired Exp. Utility Shielding? 18905 | -5/Factory | Repaired Enh. Nova Cannon? 18973 | -5/Factory | Fabricated Exp. Hacking Suite? 19078 | -5/Factory | Repaired Cld. VTOL Module? 19208 | -5/Factory | Fabricated Mni. Smartbomb Launcher (x1) 19327 | -5/Factory | Fabricated Plasma Lance (x1) 19357 | -5/Factory | Discovered new exit (range 14) 19418 | -5/Factory | Entered Upper Caves 19446 | -5/Upper Caves | Identified exit to Upper Caves 19468 | -5/Upper Caves | Acquired the password to a Derelict Tinkerer's latest research 19472 | -5/Upper Caves | Found Prototype Special Weapon 19472 | -5/Upper Caves | Identified Molecular Deconstructor 19483 | -5/Upper Caves | Entered another Upper Caves area 19488 | -5/Upper Caves | Discovered new exit (range 4) 19730 | -5/Upper Caves | Discovered new exit (range 8) 19732 | -5/Upper Caves | Entered Warlord 19856 | -5/Warlord | System corruption cleaned by Quarantine Array 19891 | -5/Warlord | Learned location of Command (-1) 19891 | -5/Warlord | Learned Armory trap positions 19891 | -5/Warlord | Learned Quarantine stockpile data 19891 | -5/Warlord | Learned 4 Armory zone layouts 19891 | -5/Warlord | Learned 4 Research zone layouts 19891 | -5/Warlord | Learned 4 Access zone layouts 19891 | -5/Warlord | Learned Armory security intel 19891 | -5/Warlord | Learned Factory repair station intel 19891 | -5/Warlord | Learned Factory recycling unit intel 19951 | -5/Warlord | Visited the Vortex Lab 19965 | -5/Warlord | Met Warlord 19968 | -5/Warlord | Opened Warlord's prototype stash 19969 | -5/Warlord | Warlord's base attacked by MAIN.C 19969 | -5/Warlord | Found Prototype Device 19969 | -5/Warlord | Identified Exp. Focal Shield 20120 | -5/Warlord | Discovered new exit (range 14) 20123 | -5/Warlord | Entered Proximity Caves 20288 | -4/Proximity Caves | Learned Research security intel 20289 | -4/Proximity Caves | Attracted the attention of an 0b10 checkpoint 20339 | -4/Proximity Caves | Spotted B-86 Titan 20368 | -4/Proximity Caves | Discovered new exit (range 6) 20371 | -4/Proximity Caves | Entered Factory 20371 | -4/Factory | Evolved 2 slots: Power x1, Propulsion x1 20372 | -4/Factory | Identified exit to Research 20373 | -4/Factory | Loaded intel: 6 repair station locations 20374 | -4/Factory | Loaded intel: 6 recycling unit locations 20412 | -4/Factory | Found Launcher Loader 20496 | -4/Factory | Repaired Cld. Nuclear Pulse Thruster? 20565 | -4/Factory | Identified exit to Upper Caves 20565 | -4/Factory | Identified exit to Extension 20565 | -4/Factory | Identified exit to Armory 20615 | -4/Factory | Repaired Centrium Light Armor Plating 20965 | -4/Factory | Repaired Centrium Light Armor Plating? 21072 | -4/Factory | Fabricated Hcp. Storage Unit (x1) 21121 | -4/Factory | Search patrols dispatched 21244 | -4/Factory | Spotted B-86 Titan 21257 | -4/Factory | Spotted B-86 Titan 21371 | -4/Factory | Search patrols dispatched 21423 | -4/Factory | Repaired Centrium Light Armor Plating? 21463 | -4/Factory | Repaired Cld. Nuclear Pulse Thruster? 21621 | -4/Factory | Search patrols dispatched 21649 | -4/Factory | Central database locked down 21678 | -4/Factory | Repaired Cld. Nuclear Pulse Thruster? 21687 | -4/Factory | Sucked down chute 21687 | -4/Factory | Entered Waste 21699 | -4/Waste | Spotted C-40 Crusher 21708 | -4/Waste | Found Prototype Launcher 21708 | -4/Waste | Identified Enh. Gamma Bomb Array 21718 | -4/Waste | Lost 4 parts (2p1n1w) 21731 | -4/Waste | Spotted C-40 Crusher 21732 | -4/Waste | Spotted C-40 Crusher 21733 | -4/Waste | Spotted C-40 Crusher 21734 | -4/Waste | Spotted C-40 Crusher 21745 | -4/Waste | Spotted C-40 Crusher 21747 | -4/Waste | Discovered new exit (range 16) 21750 | -4/Waste | Entered Factory 21822 | -4/Factory | Repaired Cld. VTOL Module 21907 | -4/Factory | Discovered exit to Extension (range 16) 21975 | -4/Factory | Found Exp. System Shield 21977 | -4/Factory | Found Exp. System Shield 22214 | -4/Factory | Fabricated Exp. Melee Analysis Suite? 22265 | -4/Factory | Repaired Centrium Light Armor Plating 22331 | -4/Factory | Fabricated Exp. Melee Analysis Suite (x1) 22336 | -4/Factory | Repaired Cld. VTOL Module? 22427 | -4/Factory | Fabricated Exp. Melee Analysis Suite (x1) 22457 | -4/Factory | Repaired Plasma Lance 22533 | -4/Factory | Spotted B-86 Titan 22575 | -4/Factory | Discovered exit to Armory (range 16) 22615 | -4/Factory | Discovered exit to Upper Caves (range 11) 22694 | -4/Factory | Discovered exit to Research (range 18) 22703 | -4/Factory | Discovered exit to Extension (range 7) 22797 | -4/Factory | Lost 3 parts (1p2n) 22857 | -4/Factory | Discovered exit to Research (range 10) 22860 | -4/Factory | Fabricated Exp. Utility Shielding? 23404 | -4/Factory | Found Adv. Force Booster 23417 | -4/Factory | Fabricated Transport Network Coupler (x2) 23515 | -4/Factory | Destroyed 7 combat bots 23668 | -4/Factory | Repaired Centrium Light Armor Plating? 23809 | -4/Factory | Fabricated Plasma Lance (x1) 23872 | -4/Factory | Fabricated Plasma Lance? 23987 | -4/Factory | Repaired Cld. Nuclear Pulse Thruster 24051 | -4/Factory | Repaired Field Propulsion Array? 24171 | -4/Factory | Repaired Hellfire Missile Launcher? 24250 | -4/Factory | First assault squad dispatched 24292 | -4/Factory | Entered Extension 24384 | -4/Extension | Disrupted transfer network 24384 | -4/Extension | Rescued a captive Derelict 24386 | -4/Extension | Rescued a captive Derelict 24431 | -4/Extension | Rescued a captive Derelict 24432 | -4/Extension | Rescued a captive Derelict 24499 | -4/Extension | Core integrity fell below 50% 24511 | -4/Extension | Spotted B-86 Titan 24512 | -4/Extension | Spotted B-86 Titan 24519 | -4/Extension | Rescued a captive Derelict 24559 | -4/Extension | Lost 9 allies 24605 | -4/Extension | Rescued a captive Derelict 24605 | -4/Extension | Rescued a captive Derelict 24630 | -4/Extension | Rescued A7 24679 | -4/Extension | Rescued a captive Derelict 24801 | -4/Extension | Discovered exit to Research (range 10) 24801 | -4/Extension | Discovered new exit (range 6) 24828 | -4/Extension | Entered Cetus 24828 | -4/Cetus | Accompanied by 5 allies (A7) 24833 | -4/Cetus | Acquired a Cetus Manufacturing Module code from A7 24840 | -4/Cetus | Spotted Cetus Guard 24840 | -4/Cetus | Spotted Cetus Guard 24841 | -4/Cetus | Spotted Cetus Guard 24841 | -4/Cetus | Spotted Cetus Guard 24845 | -4/Cetus | Allies destroyed Cetus Guard 24852 | -4/Cetus | Destroyed Cetus Guard 24856 | -4/Cetus | Allies destroyed Cetus Guard 24856 | -4/Cetus | Allies destroyed Cetus Guard 24880 | -4/Cetus | Escorted A7 to Cetus Mainframe 24883 | -4/Cetus | Started Cetus Manufacturing Module 24908 | -4/Cetus | Manufactured an Enhanced Grunt 24933 | -4/Cetus | Manufactured an Enhanced Grunt 24958 | -4/Cetus | Manufactured an Enhanced Grunt 24983 | -4/Cetus | Manufactured an Enhanced Grunt 25008 | -4/Cetus | Manufactured an Enhanced Grunt 25055 | -4/Cetus | Discovered new exit (range 16) 25084 | -4/Cetus | Entered Archives 25084 | -4/Archives | Accompanied by 8 allies (A7) 25089 | -4/Archives | Received a hacking code to weaken MAIN.C 25091 | -4/Archives | Met Zhirov 25092 | -4/Archives | Unable to access archive contents 25093 | -4/Archives | Discovered new exit (range 16) 25095 | -4/Archives | Read partially decrypted archive contents 25097 | -4/Archives | Reinforcements dispatched to Archives 25098 | -4/Archives | Discovered new exit (range 16) 25121 | -4/Archives | Unable to access archive contents 25142 | -4/Archives | Reinforcements dispatched to Archives 25148 | -4/Archives | Entered Hub_04(d) 25148 | -4/Hub_04(d) | Accompanied by 4 allies 25150 | -4/Hub_04(d) | Lost 3 allies 25284 | -4/Hub_04(d) | Network Hub disabled 25289 | -4/Hub_04(d) | Spotted Lightning 25293 | -4/Hub_04(d) | System corruption reached 10% 25295 | -4/Hub_04(d) | Core integrity fell below 20% 25302 | -4/Hub_04(d) | Destroyed by G-67 Veteran with Field Laser Last Messages --------------- 25289_ EMDS Slug penetrates Wall. 25289_ Field Propulsion Array destroyed. 25290_ Penetrated by EMDS Slug. 25290_ Field Propulsion Array destroyed. 25291_ Acquired 29 matter. 25291_ EMDS Slug penetrates Wall. 25292_ Penetrated by EMDS Slug. 25293_ Critical hit (Burn: +50). 25293_ EMDS Slug penetrates Wall. 25294_ Penetrated by EMDS Slug. 25295_ Field Propulsion Array destroyed. 25296_ P-70 Sage resets U-05 Engineer, system corruption cleaned. 25296_ EMDS Slug penetrates Wall. 25296_ Penetrated by EMDS Slug. 25297_ Centrium Light Armor Plating destroyed. 25298_ Penetrated by EMDS Slug. 25298_ EMDS Slug penetrates Wall. 25301_ Penetrated by EMDS Slug. 25302_ P-70 Sage resets A-15 Conveyor, system corruption cleaned. [Achievement: I Was Wrong!] Map ----- +----------------------------------------------------+ | ## #????# #????#??????# T#????# | | ?#####????# #????#??????# ##????# | | ??????????######++#####????#??????# #?????# | | ################ #????????#??????+ #?????# | | ! ! # #???######??????# #?????# | | + ##### #??????# ####### | | """" """" """" # #??????# k | | """" """" """" # !< #??????# | | """" """" """" # ###### #??????# | | """" """" """" # #????## ######### ###+######## | | # #?????# # # # #??? | | = # ####### # """ # #"" " #?#!! | | ######/######### ## # # #"" " #?#!! | | ?????# #########/## # """ + #"T " #?#![ | | ?????# T# "" "" # ###### # #"" #?# | | ?????# ## "" " # # # """ # #"" " #?# " | | ?????# ## # + # # # " #?# " | | ?????# ## / # # """ # # " #?# " | | ?????# + """ """ # # # # #! #?# | | ???###### ##Y# # """ # # " " #?### | | ??? " """ """ ##p# # # # " " #???? | | ?? " ##p# ######### # " " #???? | | ##"""""""""###/#####g######??????## # #???? | | " ?# ####;g;############# ###?####???? | | " ## # u%gg ; #?# #??????? | | " #g#Rg @ # #?# #??????? | | ";;;; ; uw ! k ; ###?#??????? | | " ; gg %! u ; # ??????? | | gggg ; ; # " ??????? | | "";; ; ! ;[[ # " ?####+# | | i" # # R ;![!# " # | | ? " ?# ####+####/##########!==# # " " " | | ? "??# A =!%! w =g# # " " " | | ?? ????# u ==*! / # " " " | | ??"""""##########+#####+########### # # | | ??????? # T #????# # # | | ????????"" "" #! """ """ #????# # " # | | ????????"" "" # R #????# < # " # | | ???????""" T" + """ """ #????# # " ######+ | | ???????""" "" #w #????##### ?????# | | ?